Cogmind - Beta 10.2 @@@ ROGUE MODE // 2021.08.06 @ 22:27:43 Player: Sebsebeleb Result: Destroyed by P-80 Master with Gamma Rifle Performance ------------- Evolutions (7) 3500 Regions Visited (15) 3000 Robots Destroyed (113) 565 Value Destroyed (5176) 5176 Prototype IDs (33) 660 Alien Tech Used (0) 0 Bonus (2166) 2166 TOTAL SCORE: 15067 Bonus ------- High Alert Combat Kills 786 Follower Combat Kills 80 Aligned with FarCom 300 Met Warlord at Base 500 MAIN.C Attacked Warlord 500 Cogmind --------- Core Integrity 0/1300 Matter 114/300 Energy 3/180 System Corruption 17% Temperature Cool (0) Movement Core (400) Ox7 Location -3/Research Parts ------- > --- POWER (3) -------- Light Particle Reactor > --- PROPULSION (6) --- Gyrokinetic Inverter > --- UTILITY (9) ------ Advanced Cryofiber Web Medium Storage Unit Advanced Target Analyzer > --- WEAPON (3) ------- (None) > --- INVENTORY (8) ---- Armored Medium Treads Flexi-carbon Leg Myomer Leg Heavy Phase Cannon Peak State ------------ > --- POWER ------------ Micro Fission Core Light Antimatter Reactor > --- PROPULSION ------- Heavy Siege Treads Biometal Heavy Treads Biometal Heavy Treads > --- UTILITY ---------- Advanced Heat Sink Advanced Coolant Injector Advanced Signal Interpreter Advanced Target Analyzer Advanced Thermal Shield System Shield System Backup Module System Restoration Module Improved Integration Mediator > --- WEAPON ----------- Gamma Rifle Linear Accelerator Advanced Remote Datajack > --- INVENTORY -------- Myomer Leg Improved Particle Charger Self-destruct Interrupter [Rating: 136] Favorites ----------- Power Light Ion Engine Engine Light Ion Engine Power Core Micro Fission Core Reactor Light Antimatter Reactor Propulsion Flying Fortress v7 Treads Light Treads Leg Flexi-carbon Leg Hover Unit Gyrokinetic Inverter Flight Unit Flying Fortress v7 Utility Medium Storage Unit Device Advanced Heat Sink Storage Medium Storage Unit Processor Advanced Targeting Computer Hackware System Shield Protection Propulsion Shielding Weapon Mini Assault Cannon Energy Gun Small Laser Energy Cannon Disruptor Cannon Ballistic Gun Heavy Assault Rifle Ballistic Cannon Mini Assault Cannon Launcher Mini Smartbomb Launcher Special Weapon Advanced Remote Datajack Impact Weapon Power Maul Build | -11 -10 -10 -10 -9 -8 -7 -7 -7 -5 -5 -5 -5 -4 -4 -3 ------- Run | Scr Mat Min Exi Min Mat Fac Sto Rec Fac Upp Upp War Pro Fac Res Slots Evolved 14 | . . . . . 4 2 . . 4 . . . . 2 2 Power 2 | . . . . . . 1 . . . . . . . . 1 Propulsion 4 | . . . . . 2 . . . . . . . . 1 1 Utility 7 | . . . . . 2 1 . . 3 . . . . 1 . Weapon 1 | . . . . . . . . . 1 . . . . . . Parts Attached 202 | 6 6 2 2 . 17 18 4 1 19 3 . 7 11 22 84 Power 30 | 1 1 . . . 3 3 1 . 2 . . 2 1 5 11 Engine 3 | 1 1 . . . . . 1 . . . . . . . . Core 16 | . . . . . 3 3 . . 2 . . 1 . 3 4 Reactor 11 | . . . . . . . . . . . . 1 1 2 7 Propulsion 37 | 2 1 . . . 1 2 . . . . . . . 1 30 Treads 8 | 2 1 . . . . . . . . . . . . . 5 Leg 9 | . . . . . . . . . . . . . . . 9 Wheel . | . . . . . . . . . . . . . . . . Hover 10 | . . . . . . . . . . . . . . . 10 Flight 10 | . . . . . 1 2 . . . . . . . 1 6 Utility 58 | 1 1 1 2 . 4 2 1 . 9 . . 1 4 9 23 Device 32 | . . . 1 . . . . . 6 . . 1 4 6 14 Storage 10 | 1 . 1 1 . . 1 . . . . . . . . 6 Processor 5 | . . . . . . 1 1 . . . . . . . 3 Hackware 2 | . 1 . . . 1 . . . . . . . . . . Protection 9 | . . . . . 3 . . . 3 . . . . 3 . Artifact . | . . . . . . . . . . . . . . . . Weapon 77 | 2 3 1 . . 9 11 2 1 8 3 . 4 6 7 20 Energy Gun 16 | 1 2 . . . 1 . . . 1 . . . . . 11 Energy Cannon 19 | . . . . . 2 . . . 2 2 . 2 4 5 2 Ballistic Gun 15 | 1 1 1 . . . 3 1 1 . . . . 1 2 4 Ballistic Cannon 13 | . . . . . 1 3 . . 4 . . 2 1 . 2 Launcher 3 | . . . . . 1 . . . 1 1 . . . . . Special Weapon 3 | . . . . . 2 . . . . . . . . . 1 Impact Weapon 8 | . . . . . 2 5 1 . . . . . . . . Slashing Weapon . | . . . . . . . . . . . . . . . . Piercing Weapon . | . . . . . . . . . . . . . . . . Special Melee Weapon . | . . . . . . . . . . . . . . . . Unidentified Prototypes 11 | . . . 1 . 2 2 1 . 2 . . 1 . 1 1 Parts Lost 113 | . 3 . . . 5 1 . . 3 . 1 1 8 19 72 Power 16 | . 1 . . . 3 . . . . . . . 1 4 7 Propulsion 27 | . . . . . . . . . . . . . . 2 25 Utility 38 | . . . . . 1 . . . 3 . . . 4 8 22 Weapon 32 | . 2 . . . 1 1 . . . . 1 1 3 5 18 Highest Loss Streak 21 | . 2 . . . 5 1 . . 2 . 1 1 5 16 21 Average Slot Usage (%) 80 | . 97 100 99 100 70 74 76 76 81 82 82 81 78 70 71 Engine 4 | . 14 14 14 14 6 . 3 7 5 5 5 4 . . . Core 5 | . . . . . . 12 11 7 5 5 5 5 5 4 5 Treads 6 | . 28 28 28 28 . . . . . . . . . . 5 Hover 1 | . . . . . . . . . . . . . . . 7 Flight 4 | . . . . . 9 7 7 7 5 5 5 5 5 6 . Device 6 | . . . . . . . . . 11 11 11 11 15 21 17 Storage 11 | . 14 14 13 14 9 14 15 15 11 11 11 11 11 7 4 Processor 6 | . . . . . . 6 7 15 11 11 11 11 8 5 9 Hackware 7 | . 12 14 14 14 9 7 7 7 5 5 5 5 5 5 3 Protection 3 | . . . . . 17 7 7 . 4 5 5 5 1 1 . Energy Gun 3 | . 11 14 14 14 1 1 . . 1 5 5 . . . 3 Energy Cannon 1 | . . . . . 4 . . . 2 2 5 4 5 3 . Ballistic Gun 4 | . 15 14 14 14 1 1 2 4 . . . . 1 3 1 Ballistic Cannon 4 | . . . . . 1 6 7 7 12 4 . 5 7 5 1 Impact Weapon 1 | . . . . . 6 5 4 2 . . . . . . . Naked Turns . | . . . . . . . . . . . . . . . . Heaviest Build 102 | 10 12 15 15 15 43 40 44 43 74 70 70 69 75 102 61 Greatest Support 220 | 40 40 40 40 40 72 72 72 72 72 72 72 72 72 80 220 Greatest Overweight (x) 22 | . . . . . 12 . . . 1 . . . 1 22 2 Average Overweight (x) . | . . . . . . . . . . . . . . . . Largest Inventory Capacity 12 | 6 6 8 8 8 8 12 12 12 12 12 12 12 12 12 12 Average Capacity 9 | 5 6 7 7 8 8 11 12 12 12 12 12 12 12 9 7 Most Carried 12 | 4 6 8 8 8 8 12 12 12 12 12 12 12 12 12 12 Average Carried 8 | 2 5 7 7 8 7 11 11 12 10 12 12 11 10 9 5 Final Capacity 12 | 6 6 8 8 8 8 12 12 12 12 12 12 12 12 4 8 Final Carried 12 | 4 5 8 8 8 8 12 12 12 12 12 12 11 11 4 4 Class Distribution -------------------- 72% | Mutant 11% | Scavenger-Mutant 5% | Scavenger-Skirmisher 4% | Tank 3% | Scout Dominant Class ---------------- Mutant | -10/Materials Mutant | -10/Mines Mutant | -10/Exiles Mutant | -9/Mines Mutant | -8/Materials Mutant | -7/Factory Mutant | -7/Storage Mutant | -7/Recycling Scout | -5/Factory Mutant | -5/Upper Caves Mutant | -5/Upper Caves Mutant | -5/Warlord Scavenger-Gunner | -4/Proximity Caves Scavenger-Skirmisher | -4/Factory Scavenger-Mutant | -3/Research Resources | -11 -10 -10 -10 -9 -8 -7 -7 -7 -5 -5 -5 -5 -4 -4 -3 ----------- Run | Scr Mat Min Exi Min Mat Fac Sto Rec Fac Upp Upp War Pro Fac Res Matter Collected 3808 | 148 362 45 . 68 178 205 69 149 269 325 . 190 199 235 1366 Remotely . | . . . . . . . . . . . . . . . . Salvage Created 4555 | . 604 105 . 176 369 173 64 60 72 316 . . 331 510 1775 Parts 226 | . 34 7 . 15 14 11 4 5 7 23 . . 14 18 74 Haulers Intercepted 6 | . 1 . . . 2 1 . . . . . . . 1 1 Recyclers Shooed . | . . . . . . . . . . . . . . . . Parts Field Recycled . | . . . . . . . . . . . . . . . . Retrieved Matter . | . . . . . . . . . . . . . . . . Parts Self-Destructed 93 | . . . . . . . . . . 17 . 68 8 . . Prevented 16 | . . . . . . . . . . 4 . 9 3 . . Kills | -11 -10 -10 -10 -9 -8 -7 -7 -7 -5 -5 -5 -5 -4 -4 -3 ------- Run | Scr Mat Min Exi Min Mat Fac Sto Rec Fac Upp Upp War Pro Fac Res Combat Hostiles Destroyed 95 | . 11 2 . 7 5 3 1 3 2 12 . . 8 10 31 Guns 37 | . 11 2 . 7 . . 1 1 . 6 . . . 1 8 Cannons 37 | . . . . . 1 3 . 1 2 1 . . 8 6 15 AOE 14 | . . . . . 2 . . 1 . 5 . . . 2 4 Classes Destroyed 13 | . 4 1 . 1 2 1 . 1 1 . . . . . 2 Worker 2 | . . . . . . . . . . . . . . . 2 Builder 2 | . . . . . . . . . 1 . . . . . 1 Hauler 6 | . 1 . . . 2 1 . . . . . . . 1 1 Recycler 4 | . 2 . . . . . . 1 . . . . . . 1 Operator 2 | . 1 . . . . . . . 1 . . . . . . Drone 3 | . . . . . . . . 3 . . . . . . . Watcher 2 | . . . . . 2 . . . . . . . . . . Swarmer 24 | . . . . 4 . . . . . 10 . . . 5 5 Grunt 35 | . 11 . . 3 3 . . . . . . . 6 . 12 Duelist 1 | . . . . . . . . . . . . . . . 1 Sentry 10 | . . 2 . . 1 1 1 . 2 . . . . 1 2 Hunter 12 | . . . . . 1 . . . . 2 . . 2 2 5 Programmer 10 | . . . . . . 2 . . . . . . . 2 6 Best Kill Streak 7 | . 4 2 . 4 4 1 1 3 2 5 . . 7 5 7 Combat Bots Only 7 | . 3 2 . 4 3 1 1 2 1 5 . . 7 5 6 Max Kills in Single Turn 5 | . 1 1 . 1 2 1 1 1 2 5 . . 1 2 5 Gunslinging . | . . . . . . . . . . . . . . . . Exploded 5 | . . . . . 2 . . 1 . 5 . . . 2 4 Melee . | . . . . . . . . . . . . . . . . Uniques/NPCs Destroyed . | . . . . . . . . . . . . . . . . Combat | -11 -10 -10 -10 -9 -8 -7 -7 -7 -5 -5 -5 -5 -4 -4 -3 -------- Run | Scr Mat Min Exi Min Mat Fac Sto Rec Fac Upp Upp War Pro Fac Res Damage Taken 17379 | . 661 13 . 135 747 338 81 . 534 365 11 101 1186 2709 10498 Core 2748 | . 136 . . . 157 167 . . 46 8 . . 157 765 1312 Absorbed by Shields 567 | . . . . . . . . . 110 315 11 . . 131 . Reduced by Siege Mode 868 | . . . . . . . . . . . . . . . 868 Core Remaining (%) 67 | 100 . . . 45 71 . . 76 . . . . 78 33 . Volleys Fired 354 | . 56 5 . 16 13 7 8 6 17 24 . . 18 32 152 Largest 3 | . 2 2 . 2 2 2 2 2 3 3 . . 3 3 3 Hottest 250 | . 85 60 . 63 119 103 76 76 186 186 . . 248 250 228 Shots Fired 650 | . 101 10 . 32 19 13 16 12 51 42 . . 53 63 238 Gun 352 | . 101 10 . 32 . 6 8 6 2 23 . . . 19 145 Cannon 289 | . . . . . 12 7 8 6 49 18 . . 53 44 92 Launcher 2 | . . . . . 1 . . . . 1 . . . . . Special 7 | . . . . . 6 . . . . . . . . . 1 Kinetic 371 | . 71 5 . 16 6 10 16 12 45 4 . . 21 39 126 Thermal 138 | . 30 5 . 16 12 3 . . 6 23 . . 11 4 28 Explosive 2 | . . . . . 1 . . . . 1 . . . . . Electromagnetic 119 | . . . . . . . . . . 14 . . 7 15 83 Entropic 19 | . . . . . . . . . . . . . 14 5 . Robot Hit Streak 60 | . 13 7 . 10 3 13 2 3 17 16 . . 7 9 60 Robot Miss Streak 6 | . 2 1 . 3 2 . 3 4 6 2 . . 3 5 3 Penetration Max 1 | . . . . . . . . . . . . . 1 . . Secondary Targets 6 | . 1 1 . 2 . . . . . . . . . . 2 Max Gunslinging Chain 1 | . 1 1 . 1 . . . . . . . . . . 1 Shots Hit Robots 473 | . 72 7 . 19 27 18 6 4 40 26 . . 25 37 192 Core Hits 191 | . 29 3 . 9 8 5 4 4 7 17 . . 15 14 76 Critical Hits 26 | . . . . . . . . . 3 . . . 1 . 22 Critical Kills 10 | . . . . . . . . . . . . . 1 . 9 Critical Parts Destroyed 14 | . . . . . . . . . 2 . . . . . 12 Melee Attacks 111 | . . . . . 37 61 13 . . . . . . . . Impact 111 | . . . . . 37 61 13 . . . . . . . . Slashing . | . . . . . . . . . . . . . . . . Piercing . | . . . . . . . . . . . . . . . . Sneak Attacks 2 | . . . . . 1 1 . . . . . . . . . Combat Hostiles . | . . . . . . . . . . . . . . . . Follow-up Attacks 2 | . . . . . 2 . . . . . . . . . . Damage Inflicted 14367 | . 959 81 . 236 1116 567 75 318 994 1000 . . 1548 1461 6012 Guns 4173 | . 959 81 . 236 . 109 41 68 23 412 . . . 310 1934 Cannons 6978 | . . . . . 71 188 . 85 860 144 . . 1548 981 3101 Explosions 2164 | . . . . . 268 . 34 165 111 444 . . . 170 972 Melee 1047 | . . . . . 777 270 . . . . . . . . . Ramming 5 | . . . . . . . . . . . . . . . 5 Kinetic 6247 | . 643 24 . 94 21 241 41 153 786 18 . . 250 608 3368 Thermal 2080 | . 316 57 . 142 50 56 . . 97 412 . . 98 277 575 Explosive 1994 | . . . . . 268 . 34 165 111 444 . . . . 972 Electromagnetic 1742 | . . . . . . . . . . 126 . . 182 342 1092 Impact 1047 | . . . . . 777 270 . . . . . . . . . Slashing . | . . . . . . . . . . . . . . . . Piercing . | . . . . . . . . . . . . . . . . Entropic 1252 | . . . . . . . . . . . . . 1018 234 . Highest Corruption 16 | . . . . . . . 1 1 . . . . . . 16 Average Corruption 2 | . . . . . . . 1 1 . . . . . . 4 Corruption Purged 5 | . . . . . . . . . . . . . . . 5 Effects 33 | . . . . . . . 1 . . . . . . . 32 Message Errors 4 | . . . . . . . . . . . . . . . 4 Matter Fused 4 | . . . . . . . . . . . . . . . 4 Heat Flow Errors 4 | . . . . . . . . . . . . . . . 4 Energy Discharges 5 | . . . . . . . . . . . . . . . 5 Parts Rejected 1 | . . . . . . . . . . . . . . . 1 Data Loss (minor) 7 | . . . . . . . 1 . . . . . . . 6 Data Loss (major) 1 | . . . . . . . . . . . . . . . 1 Misdirections 1 | . . . . . . . . . . . . . . . 1 Targeting Errors 5 | . . . . . . . . . . . . . . . 5 Weapon Failures 1 | . . . . . . . . . . . . . . . 1 Overload Shots . | . . . . . . . . . . . . . . . . Overflow Damage 534 | . . . . . 101 36 . 26 134 21 . . 110 43 63 Projectiles 247 | . . . . . . . . . 45 . . . 110 43 49 Explosions 175 | . . . . . 25 . . 26 89 21 . . . . 14 Melee 112 | . . . . . 76 36 . . . . . . . . . Knockbacks 48 | . . . . . 3 1 . 1 4 . . . 4 1 34 Impact 3 | . . . . . 3 . . . . . . . . . . Kinetic 38 | . . . . . . 1 . 1 4 . . . 4 1 27 Secondary 7 | . . . . . . . . . . . . . . . 7 Self-Inflicted Damage 237 | . . . . . 32 . 56 . 121 . . . . 26 2 Shots 5 | . . . . . 1 . 1 . 2 . . . . 1 . Rammed 1 | . . . . . . . . . . . . . . . 1 Targets Rammed 1 | . . . . . . . . . . . . . . . 1 Kicked . | . . . . . . . . . . . . . . . . Crushed . | . . . . . . . . . . . . . . . . Highest Temperature 463 | . 153 . . 24 292 144 145 98 445 178 . . 381 239 463 Average Temperature 103 | . 52 . . 11 91 45 63 31 187 60 . . 121 89 137 Received Heat Transfer 2444 | . 360 . . 15 378 58 12 . 62 16 4 18 117 213 1191 Effects 8 | . . . . . 1 . . . 3 . . . 1 . 3 Shutdowns 2 | . . . . . . . . . 1 . . . . . 1 Energy Bleed 4 | . . . . . . . . . 2 . . . 1 . 1 Interference 2 | . . . . . 1 . . . . . . . . . 1 Siege Activations 9 | . . . . . . . . . . . . . . . 9 Total Turns 209 | . . . . . . . . . . . . . . . 209 Longest Duration 45 | . . . . . . . . . . . . . . . 45 Robots Corrupted 5 | . . . . . . . . . . . . . . 1 4 Combat Hostiles 5 | . . . . . . . . . . . . . . 1 4 Parts Fried 19 | . . . . . 5 1 . . 1 1 . . . 3 8 Impact Corruptions 8 | . . . . . 6 2 . . . . . . . . . Robots Melted . | . . . . . . . . . . . . . . . . Combat Hostiles . | . . . . . . . . . . . . . . . . Parts Melted 10 | . 1 . . . . . . . 1 2 . . . 1 5 Heat Transferred 3586 | . 732 125 . 325 74 111 . . 187 629 . . 150 261 992 Parts Sabotaged . | . . . . . . . . . . . . . . . . Parts Stolen . | . . . . . . . . . . . . . . . . Parts Stripped . | . . . . . . . . . . . . . . . . Power Chain Reactions 1 | . . . . . . . . . . . . . . 1 . Missiles Intercepted . | . . . . . . . . . . . . . . . . Alert | -11 -10 -10 -10 -9 -8 -7 -7 -7 -5 -5 -5 -5 -4 -4 -3 ------- Run | Scr Mat Min Exi Min Mat Fac Sto Rec Fac Upp Upp War Pro Fac Res Peak Influence 1299 | . 322 181 . 102 192 166 131 305 1299 . . . . 331 649 Initial 976 | . . 78 . . 15 60 17 34 976 . . . . 97 84 Average 234 | . 174 93 . 33 75 40 31 181 1037 . . . . 130 444 Maximum Alert Level 4 | . 1 . . . . . . 1 4 . . . . 1 2 Low Security (%) 67 | 100 53 100 . 100 100 100 100 55 . . . . . 91 16 Level 1 6 | . 46 . . . . . . 44 . . . . . 8 3 Level 2 18 | . . . . . . . . . . . . . . . 79 Level 3 6 | . . . . . . . . . 83 . . . . . . Level 4 1 | . . . . . . . . . 16 . . . . . . Level 5 . | . . . . . . . . . . . . . . . . High Security . | . . . . . . . . . . . . . . . . Max Security . | . . . . . . . . . . . . . . . . Squads Dispatched 34 | . 3 . . . 1 5 . . 4 . . . . 6 15 Investigation 7 | . 1 . . . 1 . . . 2 . . . . 1 2 Extermination 9 | . . . . . . 3 . . 1 . . . . 1 4 Reinforcement 10 | . 2 . . . . 2 . . 1 . . . . 2 3 Assault 3 | . . . . . . . . . . . . . . . 3 Garrison 5 | . . . . . . . . . . . . . . 2 3 Intercept . | . . . . . . . . . . . . . . . . Construction Impeded 1 | . . . . . . . . . . . . . . . 1 Haulers Reinforced 2 | . . . . . . 1 . . . . . . . 1 . Stealth | -11 -10 -10 -10 -9 -8 -7 -7 -7 -5 -5 -5 -5 -4 -4 -3 --------- Run | Scr Mat Min Exi Min Mat Fac Sto Rec Fac Upp Upp War Pro Fac Res Distress Signals 6 | . 1 . . . 1 . . . . . . 1 . . 3 Communications Jammed . | . . . . . . . . . . . . . . . . Distress Signals . | . . . . . . . . . . . . . . . . Times Spotted 230 | . 19 4 . 7 20 13 2 8 5 26 3 19 12 24 68 Peak Tracking Total 13 | . 5 2 . 4 7 3 1 4 1 10 4 9 8 9 13 Tactical Retreats 24 | . . . . . 3 1 . . 1 4 . 1 1 3 10 Traps | -11 -10 -10 -10 -9 -8 -7 -7 -7 -5 -5 -5 -5 -4 -4 -3 ------- Run | Scr Mat Min Exi Min Mat Fac Sto Rec Fac Upp Upp War Pro Fac Res Traps Triggered 10 | . . . . . . 4 1 . 2 . . . . 1 2 Indirectly . | . . . . . . . . . . . . . . . . Trap Hack Attempts . | . . . . . . . . . . . . . . . . Triggered . | . . . . . . . . . . . . . . . . Disarmed . | . . . . . . . . . . . . . . . . Reprogrammed . | . . . . . . . . . . . . . . . . Reused . | . . . . . . . . . . . . . . . . Traps Extracted . | . . . . . . . . . . . . . . . . Installed . | . . . . . . . . . . . . . . . . Triggered 15 | . . . . . . . . . . . . 15 . . . Machines | -11 -10 -10 -10 -9 -8 -7 -7 -7 -5 -5 -5 -5 -4 -4 -3 ---------- Run | Scr Mat Min Exi Min Mat Fac Sto Rec Fac Upp Upp War Pro Fac Res Machines Disabled 19 | . . 1 . . . 1 6 2 5 . . . . 1 3 Max in Single Turn 3 | . . 1 . . . . 2 1 3 . . . . 1 1 Machines Sabotaged . | . . . . . . . . . . . . . . . . Garrisons Compromised . | . . . . . . . . . . . . . . . . Overloaded Fab Kills . | . . . . . . . . . . . . . . . . Fab Network Shutdowns 1 | . . . . . . . . . . . . . . . 1 Hacking | -11 -10 -10 -10 -9 -8 -7 -7 -7 -5 -5 -5 -5 -4 -4 -3 --------- Run | Scr Mat Min Exi Min Mat Fac Sto Rec Fac Upp Upp War Pro Fac Res Machines Accessed 57 | . 4 1 . . 5 7 4 12 6 . . 5 . 5 8 Terminals 24 | . 3 1 . . 4 2 3 6 2 . . . . 1 2 Fabricators 3 | . . . . . . . . . . . . . . 1 2 Repair Stations 2 | . . . . . . . . . . . . . . 1 1 Recycling Units 14 | . 1 . . . 1 3 1 6 1 . . . . . 1 Scanalyzers 5 | . . . . . . 1 . . 2 . . . . 1 1 Garrison Access 4 | . . . . . . 1 . . 1 . . . . 1 1 Total Hacks 212 | . 13 3 . . 20 45 13 30 15 . . 13 . 27 33 Successful 126 | . 6 1 . . 11 33 5 13 9 . . 13 . 17 18 Failed 86 | . 7 2 . . 9 12 8 17 6 . . . . 10 15 Catastrophic 11 | . . . . . 1 . 1 4 . . . . . 1 4 Database Lockouts . | . . . . . . . . . . . . . . . . Manual 85 | . 5 3 1 . 16 11 6 24 8 . . . . 7 4 Terminals 84 | . 12 3 . . 19 8 10 20 4 . . . . 5 3 Fabricators 10 | . . . . . . . . . . . . . . 3 7 Repair Stations 8 | . . . . . . . . . . . . . . 4 4 Recycling Units 24 | . 1 . . . 1 5 3 10 3 . . . . . 1 Scanalyzers 63 | . . . . . . 29 . . 4 . . . . 13 17 Garrison Access 10 | . . . . . . 3 . . 4 . . . . 2 1 Terminal Hacks 36 | . 5 1 . . 6 2 4 4 1 . . 13 . . . Record 3 | . . . . . . . 1 . . . . 2 . . . Robot Analysis 1 | . . . . . . . . 1 . . . . . . . Prototype ID Bank 12 | . 1 . . . 1 . 1 . . . . 9 . . . Open Door 4 | . . . . . . . 1 . 1 . . 2 . . . Branch Access Points 4 | . 1 1 . . 1 . . 1 . . . . . . . Emergency Access Points 1 | . . . . . 1 . . . . . . . . . . Terminal Index 2 | . 1 . . . 1 . . . . . . . . . . Recycling Unit Index 1 | . . . . . . 1 . . . . . . . . . Unreport Threat 1 | . . . . . . . . 1 . . . . . . . Security Status 1 | . . . . . . . 1 . . . . . . . . Transport Status 1 | . . . . . . . . 1 . . . . . . . Hauler Manifests 2 | . 1 . . . 1 . . . . . . . . . . Registered Components 2 | . . . . . 1 1 . . . . . . . . . Registered Prototypes 1 | . 1 . . . . . . . . . . . . . . Fabricator Hacks 5 | . . . . . . . . . . . . . . 2 3 Load Schematic 2 | . . . . . . . . . . . . . . 1 1 Build 3 | . . . . . . . . . . . . . . 1 2 Repair Station Hacks 4 | . . . . . . . . . . . . . . 2 2 Scan Component 3 | . . . . . . . . . . . . . . 1 2 Repair 1 | . . . . . . . . . . . . . . 1 . Recycling Unit Hacks 9 | . . . . . 1 2 1 4 1 . . . . . . Report Inventory 8 | . . . . . 1 2 1 4 . . . . . . . Retrieve Matter 1 | . . . . . . . . . 1 . . . . . . Scanalyzer 51 | . . . . . . 25 . . 2 . . . . 12 12 Insert Component 24 | . . . . . . 11 . . 1 . . . . 6 6 Analyze 27 | . . . . . . 14 . . 1 . . . . 6 6 Garrison Access Hacks 3 | . . . . . . 2 . . 1 . . . . . . Unlock Access 1 | . . . . . . 1 . . . . . . . . . Coupler Status 2 | . . . . . . 1 . . 1 . . . . . . Unauthorized Hacks 18 | . 1 . . . 4 2 . 5 4 . . . . 1 1 Terminals 9 | . . . . . 4 1 . . 2 . . . . 1 1 Track 5 | . . . . . 3 . . . . . . . . 1 1 Assimilate 3 | . . . . . 1 1 . . 1 . . . . . . Operators 1 | . . . . . . . . . 1 . . . . . . Fabricators . | . . . . . . . . . . . . . . . . Repair Stations . | . . . . . . . . . . . . . . . . Recycling Units 7 | . 1 . . . . . . 5 1 . . . . . . Tunnel 7 | . 1 . . . . . . 5 1 . . . . . . Scanalyzers . | . . . . . . . . . . . . . . . . Garrison Access 2 | . . . . . . 1 . . 1 . . . . . . Reprogram 2 | . . . . . . 1 . . 1 . . . . . . Data Cores Recovered 1 | . 1 . . . . . . . . . . . . . . Used 1 | . 1 . . . . . . . . . . . . . . Hacking Detections 40 | . 3 1 . . 4 7 3 8 4 . . . . 4 6 Full Trace Events 3 | . . . . . 1 . . . . . . . . 1 1 Feedback Events . | . . . . . . . . . . . . . . . . Feedback Blocked . | . . . . . . . . . . . . . . . . Robot Schematics Acquired . | . . . . . . . . . . . . . . . . Robots Built . | . . . . . . . . . . . . . . . . Matter . | . . . . . . . . . . . . . . . . Time . | . . . . . . . . . . . . . . . . Total Robot Build Rating . | . . . . . . . . . . . . . . . . Part Schematics Acquired 21 | . . . . . . 11 . . . . . . . 4 6 Parts Built 3 | . . . . . . . . . . . . . . 1 2 Matter 698 | . . . . . . . . . . . . . . 168 530 Time 178 | . . . . . . . . . . . . . . 42 136 Total Part Build Rating 22 | . . . . . . . . . . . . . . 4 18 Parts Repaired . | . . . . . . . . . . . . . . . . Time 26 | . . . . . . . . . . . . . . 26 . Parts Recycled . | . . . . . . . . . . . . . . . . Recycled Matter . | . . . . . . . . . . . . . . . . Retrieved Matter . | . . . . . . . . . . . . . . . . Retrieved Components . | . . . . . . . . . . . . . . . . Parts Scanalyzed 23 | . . . . . . 11 . . 1 . . . . 5 6 Part Schematics Acquired 21 | . . . . . . 11 . . . . . . . 4 6 Parts Damaged . | . . . . . . . . . . . . . . . . Bothacking | -11 -10 -10 -10 -9 -8 -7 -7 -7 -5 -5 -5 -5 -4 -4 -3 ------------ Run | Scr Mat Min Exi Min Mat Fac Sto Rec Fac Upp Upp War Pro Fac Res Used RIF Installer . | . . . . . . . . . . . . . . . . Robots Hacked 1 | . . . . . . . . . . . . . . . 1 Non-combat 1 | . . . . . . . . . . . . . . . 1 Combat . | . . . . . . . . . . . . . . . . Robot Hacks Applied 1 | . . . . . . . . . . . . . . . 1 no_distress 1 | . . . . . . . . . . . . . . . 1 Relay Couplers Released . | . . . . . . . . . . . . . . . . Robots Rewired . | . . . . . . . . . . . . . . . . Allies Hacked 1 | . . . . . . . . . 1 . . . . . . Hacks Repelled . | . . . . . . . . . . . . . . . . Allies | -11 -10 -10 -10 -9 -8 -7 -7 -7 -5 -5 -5 -5 -4 -4 -3 -------- Run | Scr Mat Min Exi Min Mat Fac Sto Rec Fac Upp Upp War Pro Fac Res Total Allies 11 | . . 3 . . 1 4 . . 3 . . . . . . Largest Group 3 | . . 3 1 1 1 3 . . 2 1 . . . . . Highest-Rated Group 108 | . . 40 16 16 10 93 . . 108 54 . . . . . Highest-Rated Ally 54 | . . 16 16 16 10 38 . . 54 54 . . . . . Total Orders 1 | . . . . . . . . . . . . . . 1 . EXPLORE 1 | . . . . . . . . . . . . . . 1 . Ally Attacks 79 | . . 19 . 8 . 37 . . 12 3 . . . . . Total Damage 1783 | . . 195 . 96 . 557 . . 857 78 . . . . . Kills 19 | . . 2 . . . 12 . . 4 1 . . . . . Allies Corrupted . | . . . . . . . . . . . . . . . . Allies Melted . | . . . . . . . . . . . . . . . . Intel | -11 -10 -10 -10 -9 -8 -7 -7 -7 -5 -5 -5 -5 -4 -4 -3 ------- Run | Scr Mat Min Exi Min Mat Fac Sto Rec Fac Upp Upp War Pro Fac Res Robot Analysis Total 1 | . . . . . . . . 1 . . . . . . . Derelict Logs Recovered 4 | . . 2 . 1 . . . . . . . . 1 . . Drone Launches 2 | . . . . . . . . . . . . . . 2 . Drone Recoveries 1 | . . . . . . . . . . . . . . 1 . Exploration | -11 -10 -10 -10 -9 -8 -7 -7 -7 -5 -5 -5 -5 -4 -4 -3 ------------- Run | Scr Mat Min Exi Min Mat Fac Sto Rec Fac Upp Upp War Pro Fac Res Turns Passed 9634 | 95 531 590 433 432 505 1830 570 383 596 391 82 622 264 525 1785 Spaces Moved 8685 | 53 208 350 268 191 485 1534 397 595 837 607 163 1025 346 591 1035 Core 120 | 3 . . . . 1 . . . . . . . . 106 10 Treads 1312 | 50 208 350 268 191 . . . . . . . . . . 245 Legs 272 | . . . . . . . . . . . . . . . 272 Wheels . | . . . . . . . . . . . . . . . . Hover 383 | . . . . . . . . . . . . . . . 383 Flight 6598 | . . . . . 484 1534 397 595 837 607 163 1025 346 485 125 Fastest Speed 31 | 50 160 160 160 160 50 50 50 50 50 50 50 50 50 42 31 Average Speed 70 | 153 160 160 160 160 51 50 50 50 51 50 50 50 50 49 108 Slowest Speed 1150 | 160 160 160 160 160 650 50 50 50 150 50 50 50 150 1150 180 Overloaded Moves . | . . . . . . . . . . . . . . . . Propulsion Burnouts . | . . . . . . . . . . . . . . . . Robots Hopped 31 | . . . . . 5 6 2 2 6 1 . . . 9 . Cave-ins Triggered . | . . . . . . . . . . . . . . . . Exploration Rate (%) 46 | 5 34 61 62 31 44 32 44 95 17 79 42 95 53 18 31 Regions Visited 15 Branch Regions 9 Pre-discovered Areas 8 | . 1 1 . . . . . 5 1 . . . . . . Known Exits Taken 11 | . 1 . . . 1 1 1 1 1 1 1 1 1 1 . Unknown Exits Taken 4 | 1 . 1 1 1 . . . . . . . . . . . Scrap Searched 7 | . . 2 . 1 . . . . . 2 . . 2 . . Spaces Dug 70 | . . . . . 11 52 6 . . . . . . . 1 Terrain Destroyed 280 | . . . . . 28 52 34 4 60 20 . . 28 25 29 Melee 61 | . . . . . 5 51 5 . . . . . . . . Projectile 101 | . . . . . 13 1 5 3 11 2 . . 28 22 16 AOE 118 | . . . . . 10 . 24 1 49 18 . . . 3 13 Terrain Rammed . | . . . . . . . . . . . . . . . . Walls Destroyed . | . . . . . . . . . . . . . . . . Machines Disabled . | . . . . . . . . . . . . . . . . Actions | -11 -10 -10 -10 -9 -8 -7 -7 -7 -5 -5 -5 -5 -4 -4 -3 --------- Run | Scr Mat Min Exi Min Mat Fac Sto Rec Fac Upp Upp War Pro Fac Res Total 11342 | 64 306 372 272 286 654 2484 729 665 955 655 162 1134 390 762 1452 Wait 1865 | 2 25 7 . 80 89 841 307 66 70 23 . 93 11 107 144 Move 8613 | 52 207 349 267 190 474 1523 392 590 824 604 162 1024 345 575 1035 Hop 26 | . . . . . 5 4 2 2 6 1 . . . 6 . Pick Up 96 | 4 7 5 1 . 14 15 1 . 8 . . 4 4 8 25 Fast Attach 107 | 6 3 . 2 . 5 7 1 . 10 . . 2 5 7 59 Attach 54 | . 2 . . . 5 2 . . 6 . . 2 5 10 22 Detach 11 | . . . . . . . . . 3 . . . 1 3 4 Swap 42 | . 1 2 . . 7 10 3 1 3 3 . 3 1 5 3 Drop 67 | . 5 4 2 . 10 14 2 . 8 . . 6 . 9 7 Fire 354 | . 56 5 . 16 13 7 8 6 17 24 . . 18 32 152 Melee 106 | . . . . . 32 61 13 . . . . . . . . Ram 1 | . . . . . . . . . . . . . . . 1 Kick . | . . . . . . . . . . . . . . . . Crush . | . . . . . . . . . . . . . . . . Escape Stasis . | . . . . . . . . . . . . . . . . Rewire . | . . . . . . . . . . . . . . . . Trap . | . . . . . . . . . . . . . . . . Miscellaneous . | . . . . . . . . . . . . . . . . Route ------- -11/Scrapyard -10/Materials (discovered 3 exits: [*Mat] / *Min x2) -10/Mines (discovered 3 exits: [*Mat x2] / *Exi) -10/Exiles -9/Mines -8/Materials -7/Factory (discovered 3 exits: *Sto / [*Low] / Gar) -7/Storage -7/Recycling -5/Factory (discovered 2 exits: *Upp / *Ext) -5/Upper Caves -5/Upper Caves -5/Warlord -4/Proximity Caves -4/Factory -3/Research (discovered 1 exit: Tes) History --------- Turn | Location | Event 31 | -11/Scrapyard | Discovered new exit (range 15) 96 | -11/Scrapyard | Entered Materials 130 | -10/Materials | Discovered new exit (range 15) 172 | -10/Materials | Identified exit to Mines 351 | -10/Materials | Build established: Mutant 410 | -10/Materials | Discovered new exit (range 11) 569 | -10/Materials | Core integrity fell below 50% 627 | -10/Materials | Entered Mines 635 | -10/Mines | Assisted by bots powering up and referring to "LRC-V3" 707 | -10/Mines | Discovered new exit (range 11) 787 | -10/Mines | Discovered new exit (range 10) 841 | -10/Mines | Received a Rocket Launcher from a helpful Derelict 857 | -10/Mines | Learned 2 Materials zone layouts 1198 | -10/Mines | Deemed a non-threat by the Exiles lab entrance 1210 | -10/Mines | Discovered new exit (range 5) 1217 | -10/Mines | Entered Exiles 1217 | -10/Exiles | Accompanied by 1 ally 1256 | -10/Exiles | Met 8R-AWN 1285 | -10/Exiles | Met EX-HEX 1345 | -10/Exiles | Met EX-DEC 1405 | -10/Exiles | Met EX-BIN 1430 | -10/Exiles | Aligned with FarCom system 1432 | -10/Exiles | Given EX-Vault access code 1481 | -10/Exiles | Opened EX-Vault 1487 | -10/Exiles | Found Prototype Device 1487 | -10/Exiles | Identified Supersonic Drone Bay 1498 | -10/Exiles | Found Prototype Flight Unit 1533 | -10/Exiles | Warned to stay clear of 0b10 Research branches 1635 | -10/Exiles | Discovered new exit (range 11) 1650 | -10/Exiles | Left Exiles lab with Flying Fortress v7 1650 | -10/Exiles | Entered Mines 1650 | -9/Mines | Accompanied by 1 ally 2042 | -9/Mines | Discovered new exit (range 10) 2082 | -9/Mines | Entered Materials 2082 | -8/Materials | Evolved 4 slots: Propulsion x2, Utility x2 2083 | -8/Materials | Identified exit to Factory 2084 | -8/Materials | Identified Flying Fortress v7 2551 | -8/Materials | Lost 5 parts (3p1u1w) 2587 | -8/Materials | Entered Factory 2587 | -7/Factory | Evolved 2 slots: Power x1, Utility x1 2588 | -7/Factory | Identified exit to Storage 2620 | -7/Factory | Allied Derelicts emerged from ambush trap array 2701 | -7/Factory | Assembled infested ambush trap array 2875 | -7/Factory | Identified exit to Garrison 4178 | -7/Factory | Discovered new exit (range 13) 4417 | -7/Factory | Entered Storage 4984 | -7/Storage | Discovered new exit (range 3) 4987 | -7/Storage | Identified exit to Recycling 4987 | -7/Storage | Entered Recycling 5059 | -7/Recycling | Discovered new exit (range 5) 5061 | -7/Recycling | Identified exit to Factory 5075 | -7/Recycling | Spotter reported a threat 5075 | -7/Recycling | Spotter reported a threat 5075 | -7/Recycling | Spotter reported a threat 5190 | -7/Recycling | Spotter reported a threat 5220 | -7/Recycling | Spotter reported a threat 5319 | -7/Recycling | Spotter reported a threat 5324 | -7/Recycling | Spotter reported a threat 5326 | -7/Recycling | Spotter reported a threat 5354 | -7/Recycling | Spotter reported a threat 5370 | -7/Recycling | Entered Factory 5370 | -5/Factory | Evolved 4 slots: Utility x3, Weapon x1 5550 | -5/Factory | Found Prototype Launcher 5550 | -5/Factory | Identified Mni. Smartbomb Launcher 5672 | -5/Factory | Build established: Scout 5887 | -5/Factory | Discovered new exit (range 6) 5889 | -5/Factory | Identified exit to Extension 5950 | -5/Factory | Discovered new exit (range 16) 5958 | -5/Factory | Identified exit to Upper Caves 5966 | -5/Factory | Entered Upper Caves 5966 | -5/Upper Caves | Accompanied by 1 ally 5985 | -5/Upper Caves | Build established: Tank 6263 | -5/Upper Caves | Spotted B-75 Beast 6290 | -5/Upper Caves | Attracted the attention of an 0b10 outpost 6333 | -5/Upper Caves | Attracted the attention of an 0b10 checkpoint 6351 | -5/Upper Caves | Discovered new exit (range 14) 6357 | -5/Upper Caves | Identified exit to Upper Caves 6357 | -5/Upper Caves | Entered another Upper Caves area 6379 | -5/Upper Caves | Encountered a Warlord checkpoint 6418 | -5/Upper Caves | Build established: Mutant 6424 | -5/Upper Caves | Discovered new exit (range 16) 6431 | -5/Upper Caves | Identified exit to Warlord 6436 | -5/Upper Caves | Ambushed by wild Derelicts 6439 | -5/Upper Caves | Entered Warlord 6503 | -5/Warlord | Visited the Vortex Lab 6510 | -5/Warlord | Found Prototype Energy Cannon 6512 | -5/Warlord | Found Prototype Energy Cannon 6513 | -5/Warlord | Identified Vortex Driver (x2) 6523 | -5/Warlord | Warlord's base attacked by MAIN.C 6700 | -5/Warlord | Met Warlord 6780 | -5/Warlord | Opened side exit 6873 | -5/Warlord | Warlord forces counterattacked 6949 | -5/Warlord | P-80 Master assimilated allied H7-VJ4(g) 6950 | -5/Warlord | P-80 Master assimilated allied WL-8VW(g) 6963 | -5/Warlord | Spotted B-75 Beast 6966 | -5/Warlord | Spotted Striker 6967 | -5/Warlord | Spotted B-75 Beast 6970 | -5/Warlord | Spotted B-86 Titan 7044 | -5/Warlord | Spotted Striker 7057 | -5/Warlord | Discovered new exit (range 9) 7061 | -5/Warlord | Identified exit to Proximity Caves 7061 | -5/Warlord | Entered Proximity Caves 7193 | -4/Proximity Caves | Lost 3 parts (1p1u1w) 7254 | -4/Proximity Caves | Lost 5 parts (3u2w) 7261 | -4/Proximity Caves | Destroyed 7 combat bots 7307 | -4/Proximity Caves | Discovered new exit (range 5) 7309 | -4/Proximity Caves | Identified exit to Factory 7325 | -4/Proximity Caves | Entered Factory 7325 | -4/Factory | Evolved 2 slots: Propulsion x1, Utility x1 7402 | -4/Factory | Fabricated Med. Reactive Plating (x1) 7688 | -4/Factory | Lost 3 parts (1p2u) 7721 | -4/Factory | Garrison activated, responded to threat 7804 | -4/Factory | Discovered new exit (range 16) 7824 | -4/Factory | Core integrity fell below 50% 7827 | -4/Factory | Lost 16 parts (3p2n6u5w) 7849 | -4/Factory | Identified exit to Research 7850 | -4/Factory | Entered Research 7850 | -3/Research | Evolved 2 slots: Power x1, Propulsion x1 7851 | -3/Research | Identified exit to Testing 7944 | -3/Research | Fabricated Biometal Heavy Treads? 8152 | -3/Research | Local fabrication network quarantined 8219 | -3/Research | Lost 4 parts (1p3u) 8350 | -3/Research | First assault squad dispatched 8505 | -3/Research | Lost 6 parts (1p2n2u1w) 8533 | -3/Research | Build established: Scavenger-Mutant 8801 | -3/Research | Garrison activated, responded to threat 8854 | -3/Research | Lost 7 parts (3u4w) 9056 | -3/Research | Core integrity fell below 50% 9097 | -3/Research | Lost 21 parts (2p8n5u6w) 9316 | -3/Research | Lost 4 parts (2n2u) 9386 | -3/Research | Lost 6 parts (2p2n1u1w) 9568 | -3/Research | System corruption reached 10% 9597 | -3/Research | Lost 13 parts (6n5u2w) 9620 | -3/Research | Core integrity fell below 20% 9635 | -3/Research | Destroyed by P-80 Master with Gamma Rifle Last Messages --------------- 09601_ Acquired Myomer Leg. 09603_ Dropped Myomer Leg. 09604_ Acquired Arm. Medium Treads. 09609_ System corrupted: Tesla Rifle targeting data glitched. 09610_ System corrupted: Lgt. Particle Reactor rejected. 09611_ P-80 Master resets P-80 Master, system corruption cleaned. 09616_ Mic. Fission Core destroyed. 09617_ P-80 Master resets P-80 Master, system corruption cleaned. 09625_ Acquired Myomer Leg. 09626_ Q-thruster destroyed. 09630_ Gyrokinetic Inverter destroyed. 09631_ Myomer Leg destroyed. 09632_ P-80 Master resets P-80 Master, system corruption cleaned. 09632_ P-80 Master suffers critical hit. 09632_ P-80 Master destroyed. 09633_ P-80 Master resets P-80 Master, system corruption cleaned. 09634_ Tesla Rifle destroyed. 09634_ Q-thruster destroyed. 09635_ Acquired Lgt. Particle Reactor. 09635_ Structural Scanner destroyed. Map ----- +----------------------------------------------------+ | ?????????????????????????????????? | | ?????????????????????????????????? | | ?????????????????????????????????? | | ?????????????????????????????????? | | ?????????????????????????????????? | | ?????????????????????????????????? | | ?????????????????????????????????? | | ?????????????? ??????????????? | | ?????????????? ?????????????? | | ????????????? ?????????????? | | ????????????? ?????????????? | | ????????????? ??????????????? | | ?????????????? ??????????????? | | ?????????????? ??????????????? | | #????########## #???????+#?????? | | #????# # #??????# ##????? | | #????# + #?????# #????? | | ###### # #?????# #????? | | + + # #?????+ +????? | | ###### # #?????# #????? | | #????# # ####### #????? | | #????# # #????? | | #????# +w #????? | | #????# # #????? | | #????###########+########p####???? | | #???????????# ## p@!| #???? | | #???????????# ## pp%!=#???? | | #???????????# ## [=[ #???? | | ????????????# """ ## #???? | | ????????????# """ ## #???? | | ????????????# """ ## #???? | | ????????????# #########???? | | ????????????# ] #???????????? | | ????????????# #???????????? | | ????????????##########???????????? | | ?????????????????????????????????? | | ?????????????????????????????????? | | ?????????????????????????????????? | | ?????????????????????????????????? | | ?????????????????????????????????? | | ?????????????????????????????????? | | ?????????????????????????????????? | | ?????????????????????????????????? | | ?????????????????????????????????? | | ?????????????????????????????????? | | ?????????????????????????????????? | | ?????????????????????????????????? | | ?????????????????????????????????? | | ?????????????????????????????????? | | ?????????????????????????????????? | +----------------------------------------------------+ Best States ------------- Heat Dissipation 95 Coolant Potential 100 Energy Generation 50 Energy Capacity 640 Matter Stores 450 Matter Capacity 600 Sight Range 16 Robot Scan Range 16 Terrain Scan Density 10 Cloak Strength 3 Base Temperature (-) 200 Armor Coverage 225 Resistance: KI 30 Resistance: TH 30 Resistance: EX 50 Power Shielding 66 Propulsion Shielding 33 Point Defense Rating 160 Thermal Conversion 60 Phase Shifting 10 Evasion (%) 71 Targeting Accuracy 8 Target Analysis 8 Recoil Reduction 6 Particle Charging 20 Offensive Hacking 10 Defensive Hacking 10 Item Schematics ----------------- Imp. Signal Interpreter | -7/Factory | Scanalyzed Melee Analysis Suite | -7/Factory | Scanalyzed Med. Reactive Plating | -7/Factory | Scanalyzed Mni. Assault Cannon | -7/Factory | Scanalyzed Assault Cannon | -7/Factory | Scanalyzed Imp. Grenade Launcher | -7/Factory | Scanalyzed Gauss Rifle | -7/Factory | Scanalyzed EM Pulse Cannon | -7/Factory | Scanalyzed Imp. Heat Sink | -7/Factory | Scanalyzed Imp. Light Armor Plating | -7/Factory | Scanalyzed Power Maul | -7/Factory | Scanalyzed Adv. Coolant Injector | -4/Factory | Scanalyzed Imp. Phase Shifter | -4/Factory | Scanalyzed System Backup Module | -4/Factory | Scanalyzed Lgt. Antimatter Reactor | -4/Factory | Scanalyzed Myomer Leg | -3/Research | Scanalyzed Imp. Cloaking Device | -3/Research | Scanalyzed Gravmag Array | -3/Research | Scanalyzed Xenon Bombardment Thruster | -3/Research | Scanalyzed Flexi-carbon Leg | -3/Research | Scanalyzed Centrium Wheel | -3/Research | Scanalyzed Robot Schematics ------------------ None Fabricated ------------ Med. Reactive Plating | x1 | -4/Factory Biometal Heavy Treads | x2 | -3/Research | Preloaded Alien Tech Used ----------------- None Achievements -------------- A Powerful Ally? Charge!!! Dangerous Findings Quick And Dirty \\IAMDERELICT Challenges ------------ None Game ------ Seed RefineryThermalWell Manual? 0 Play Time 03:49:44 Cumulative 44.2 hours Start 2021.08.05 @ 21:53:33 End 2021.08.06 @ 22:27:43 Sessions 9 Manual Loads 0 Difficulty Rogue Special Mode None Game No. 22 Rogue 22 Adventurer 0 Explorer 0 Win Type - Total 0 Types 0/0/0/0/0/0/0/0/0 Lore% 26 Gallery% 41 Achievement% 27 Wizard Run 0 Options --------- ASCII 0 Keyboard 0 Movement Numpad Keybinds 0 Fullscreen 1 Font 18/X11Bold Map View 76x50 Tactical HUD 1 Map Filters NONE Filters NONE Steam 1 RUN: 53e48522-b81b-49fc-b32b-22647494971b